[Event "CZE-ch Youth B12 2022"]
[Site "Luhacovice"]
[Date "2022.03.18"]
[Round "8.8"]
[White "Kozdon, Marek"]
[Black "Topencik, Bruno"]
[Result "1/2-1/2"]
[ECO "D37"]
[WhiteElo "1183"]
[BlackElo "1339"]
[Annotator "NA"]
[PlyCount "87"]
[EventDate "2022.03.12"]
[EventType "swiss"]
[EventCountry "CZE"]
[SourceTitle "playchess.com"]
[Source "ChessBase"]
[SourceQuality "1"]
[TimeControl "5400+30"]

1. d4 {[%emt 0:00:37]} d5 {[%emt 0:00:16]} 2. Nf3 {[%emt 0:00:26]} Nf6 {[%emt 0:00:28]} 3. c4 {[%emt 0:00:30]} e6 {[%emt 0:00:23]} 4. Nc3 {[%emt 0:01:04]} Nbd7 {[%emt 0:00:46]} 5. Bg5 {[%emt 0:03:22]} Be7 {[%emt 0:01:23]} 6. e3 {[%emt 0:01:34]} c6 {[%emt 0:01:23]} 7. Bd3 {[%emt 0:02:12]} O-O {[%emt 0:01:32]} 8. O-O {[%emt 0:01:55]} dxc4 {[%emt 0:07:15]} 9. Bxc4 {[%emt 0:00:19]} Nb6 {[%emt 0:00:37]} 10. Bd3 {[%emt 0:00:44]} Nfd5 {[%emt 0:02:41]} 11. Bxe7 {[%emt 0:06:27]} Qxe7 {[%emt 0:02:29]} 12. Nxd5 {[%emt 0:00:51]} cxd5 {[%emt 0:01:15]} 13. Qc2 {[%emt 0:01:07]} h6 {[%emt 0:01:04]} 14. Rac1 {[%emt 0:00:34]} Bd7 {[%emt 0:03:00]} 15. Qc5 {[%emt 0:00:53]} Qxc5 {[%emt 0:01:21]} 16. Rxc5 {[%emt 0:00:24]} Rfc8 {[%emt 0:01:57]} 17. Rfc1 {[%emt 0:00:32]} Rxc5 {[%emt 0:01:36]} 18. Rxc5 {[%emt 0:01:00]} Rc8 {[%emt 0:00:53]} 19. Rxc8+ {[%emt 0:00:45]} Bxc8 {[%emt 0:01:24]} 20. b3 {[%emt 0:00:31]} Kf8 {[%emt 0:01:20]} 21. Kf1 {[%emt 0:00:34]} Ke7 {[%emt 0:01:25]} 22. Ke2 {[%emt 0:01:00]} Bd7 {[%emt 0:06:46]} 23. Ne5 {[%emt 0:00:46]} Be8 {[%emt 0:01:43]} 24. h4 {[%emt 0:00:43]} f6 {[%emt 0:02:02]} 25. Nf3 {[%emt 0:00:53]} Bh5 {[%emt 0:01:32]} 26. e4 {[%emt 0:01:06]} Kd6 {[%emt 0:02:41]} 27. Ke3 {[%emt 0:02:40]} Bxf3 {[%emt 0:03:38]} 28. Kxf3 {[%emt 0:00:14]} a6 {[%emt 0:02:16]} 29. h5 {[%emt 0:00:47]} dxe4+ {[%emt 0:09:18]} 30. Bxe4 {[%emt 0:00:55]} Kc7 {[%emt 0:02:07]} 31. g4 {[%emt 0:00:53]} Nc8 {[%emt 0:02:29]} 32. Kf4 {[%emt 0:00:47]} Nd6 {[%emt 0:02:12]} 33. f3 {[%emt 0:02:24]} b6 {[%emt 0:02:39]} 34. Bd3 {[%emt 0:01:09]} b5 {[%emt 0:02:21]} 35. a3 {[%emt 0:00:54]} a5 {[%emt 0:01:40]} 36. Bc2 {[%emt 0:00:28]} b4 {[%emt 0:01:30]} 37. a4 {[%emt 0:00:25]} Kc6 {[%emt 0:09:03]} 38. Be4+ {[%emt 0:00:33]} Kd7 {[%emt 0:00:54]} 39. Ke3 {[%emt 0:03:15]} Kc7 {[%emt 0:07:23]} 40. f4 {[%emt 0:01:25]} Kd7 {[%emt 0:03:56]} 41. Bf3 {[%emt 0:03:12]} Ke7 {[%emt 0:00:49]} 42. Bc6 {[%emt 0:00:31]} Kf7 {[%emt 0:01:28]} 43. Be4 {[%emt 0:01:37]} Ke7 {[%emt 0:02:34]} 44. Bc6 {[%emt 0:01:32]} 1/2-1/2

[Event "CZE-ch Youth B12 2022"]
[Site "Luhacovice"]
[Date "2022.03.18"]
[Round "8.9"]
[White "Sotek, Simon"]
[Black "Letal, Hynek"]
[Result "0-1"]
[ECO "D32"]
[WhiteElo "1280"]
[BlackElo "1371"]
[Annotator "NA"]
[PlyCount "84"]
[EventDate "2022.03.12"]
[EventType "swiss"]
[EventCountry "CZE"]
[SourceTitle "playchess.com"]
[Source "ChessBase"]
[SourceQuality "1"]
[TimeControl "5400+30"]

1. d4 {[%emt 0:00:03]} d5 {[%emt 0:00:10]} 2. c4 {[%emt 0:00:05]} e6 {[%emt 0:00:14]} 3. Nc3 {[%emt 0:00:09]} c5 {[%emt 0:00:47]} 4. e3 {[%emt 0:00:41]} Nf6 {[%emt 0:00:42]} 5. Nf3 {[%emt 0:00:12]} Nc6 {[%emt 0:00:47]} 6. Be2 {[%emt 0:00:41]} Be7 {[%emt 0:01:25]} 7. O-O {[%emt 0:00:35]} O-O {[%emt 0:00:47]} 8. cxd5 {[%emt 0:02:37]} exd5 {[%emt 0:00:47]} 9. Re1 {[%emt 0:01:38]} a6 {[%emt 0:04:28]} 10. a3 {[%emt 0:01:36]} c4 {[%emt 0:03:57]} 11. Ne5 {[%emt 0:03:01]} Na5 {[%emt 0:04:01]} 12. Bf3 {[%emt 0:06:35]} Nb3 {[%emt 0:02:05]} 13. Ra2 {[%emt 0:00:37]} Be6 {[%emt 0:02:15]} 14. Nb1 {[%emt 0:03:28]} Bd6 {[%emt 0:02:00]} 15. Nd2 {[%emt 0:06:18]} Nxc1 {[%emt 0:02:49]} 16. Qxc1 {[%emt 0:00:06]} Bxe5 {[%emt 0:00:26]} 17. dxe5 {[%emt 0:00:08]} Nd7 {[%emt 0:00:41]} 18. Qc3 {[%emt 0:00:36]} Qc7 {[%emt 0:04:42]} 19. Raa1 {[%emt 0:14:51]} Qxe5 {[%emt 0:02:41]} 20. Qb4 {[%emt 0:03:44]} b5 {[%emt 0:07:19]} 21. a4 {[%emt 0:01:37]} Rfb8 {[%emt 0:01:46]} 22. axb5 {[%emt 0:01:44]} Rxb5 {[%emt 0:01:15]} 23. Qxb5 {[%emt 0:06:14]} axb5 {[%emt 0:00:29]} 24. Rxa8+ {[%emt 0:00:13]} Nf8 {[%emt 0:00:17]} 25. Rb1 {[%emt 0:03:52]} g6 {[%emt 0:02:45]} 26. Ra5 {[%emt 0:02:45]} b4 {[%emt 0:05:41]} 27. Rb5 {[%emt 0:05:10]} c3 {[%emt 0:02:35]} 28. bxc3 {[%emt 0:06:23]} bxc3 {[%emt 0:00:16]} 29. Nf1 {[%emt 0:01:58]} c2 {[%emt 0:05:29]} 30. Rc1 {[%emt 0:01:08]} Qc3 {[%emt 0:00:55]} 31. g4 {[%emt 0:02:49]} d4 {[%emt 0:03:15]} 32. exd4 {[%emt 0:03:07]} Bc4 {[%emt 0:01:17]} 33. Rc5 {[%emt 0:01:34]} Qb2 {[%emt 0:01:00]} 34. Rxc4 {[%emt 0:00:28]} Qxc1 {[%emt 0:00:12]} 35. Be4 {[%emt 0:00:02]} Qd1 {[%emt 0:01:04]} 36. Bxc2 {[%emt 0:00:23]} Qxg4+ {[%emt 0:00:18]} 37. Kh1 {[%emt 0:02:10]} Qe2 {[%emt 0:00:36]} 38. Ne3 {[%emt 0:00:20]} Qxf2 {[%emt 0:01:27]} 39. d5 {[%emt 0:00:40]} Qxe3 {[%emt 0:00:28]} 40. Rc6 {[%emt 0:01:01]} Qf2 {[%emt 0:01:26]} 41. h3 {[%emt 0:00:38]} Qf3+ {[%emt 0:00:09]} 42. Kg1 Qxd5 0-1

[Event "CZE-ch Youth B12 2022"]
[Site "Luhacovice"]
[Date "2022.03.18"]
[Round "8.10"]
[White "Stejskal, Jakub"]
[Black "Tejnor, Martin"]
[Result "0-1"]
[ECO "B90"]
[WhiteElo "1557"]
[BlackElo "1367"]
[Annotator "NA"]
[PlyCount "82"]
[EventDate "2022.03.12"]
[EventType "swiss"]
[EventCountry "CZE"]
[SourceTitle "playchess.com"]
[Source "ChessBase"]
[SourceQuality "1"]
[TimeControl "5400+30"]

1. e4 {[%emt 0:00:03]} c5 {[%emt 0:00:05]} 2. Nf3 {[%emt 0:00:05]} d6 {[%emt 0:00:02]} 3. d4 {[%emt 0:00:08]} cxd4 {[%emt 0:00:06]} 4. Nxd4 {[%emt 0:00:08]} Nf6 {[%emt 0:00:05]} 5. Nc3 {[%emt 0:00:08]} a6 {[%emt 0:00:04]} 6. a4 {[%emt 0:00:13]} Nc6 {[%emt 0:00:18]} 7. Be2 {[%emt 0:00:41]} e6 {[%emt 0:00:51]} 8. Be3 {[%emt 0:01:12]} Be7 {[%emt 0:00:06]} 9. O-O {[%emt 0:00:09]} O-O {[%emt 0:00:05]} 10. f4 {[%emt 0:00:12]} Bd7 {[%emt 0:01:05]} 11. Bf3 {[%emt 0:00:30]} Qc7 {[%emt 0:02:00]} 12. Qd2 {[%emt 0:02:06]} Rac8 {[%emt 0:00:46]} 13. Rad1 {[%emt 0:01:10]} Na5 {[%emt 0:01:29]} 14. Qf2 {[%emt 0:17:23]} Nc4 {[%emt 0:00:22]} 15. Bc1 {[%emt 0:03:03]} Nb6 {[%emt 0:02:08]} 16. g4 {[%emt 0:00:26]} Nxa4 {[%emt 0:01:11]} 17. Nxa4 {[%emt 0:00:09]} Bxa4 {[%emt 0:00:09]} 18. b3 {[%emt 0:00:05]} Bd7 {[%emt 0:01:03]} 19. g5 {[%emt 0:00:26]} Ne8 {[%emt 0:00:14]} 20. h4 {[%emt 0:02:07]} e5 {[%emt 0:00:34]} 21. Ne2 {[%emt 0:01:56]} Qxc2 {[%emt 0:08:34]} 22. f5 {[%emt 0:02:17]} f6 {[%emt 0:01:05]} 23. Qg3 {[%emt 0:03:14]} Qxb3 {[%emt 0:02:54]} 24. Kg2 {[%emt 0:23:21]} Bb5 {[%emt 0:03:54]} 25. Qg4 {[%emt 0:06:18]} Qf7 {[%emt 0:01:56]} 26. g6 {[%emt 0:02:33]} Qa2 {[%emt 0:01:47]} 27. Qh5 {[%emt 0:02:47]} h6 {[%emt 0:02:38]} 28. Bxh6 {[%emt 0:00:59]} Bxe2 {[%emt 0:02:35]} 29. Bxe2 {[%emt 0:00:23]} gxh6 {[%emt 0:01:18]} 30. Ra1 {[%emt 0:11:06]} Qd2 {[%emt 0:00:51]} 31. Rfd1 {[%emt 0:01:17]} Qe3 {[%emt 0:02:46]} 32. Rd3 {[%emt 0:09:24]} Qxe4+ {[%emt 0:00:19]} 33. Bf3 {[%emt 0:00:56]} Qf4 {[%emt 0:00:22]} 34. Ra4 {[%emt 0:00:51]} Rc2+ {[%emt 0:00:57]} 35. Kf1 {[%emt 0:00:31]} Ng7 {[%emt 0:00:15]} 36. Rxf4 {[%emt 0:02:22]} Nxh5 {[%emt 0:00:13]} 37. Rb4 {[%emt 0:00:14]} Ng3+ {[%emt 0:00:36]} 38. Kg1 {[%emt 0:00:45]} Nxf5 {[%emt 0:01:14]} 39. Rxb7 {[%emt 0:00:55]} Rfc8 {[%emt 0:00:45]} 40. Bg4 {[%emt 0:01:36]} Rc1+ {[%emt 0:02:45]} 41. Kh2 {[%emt 0:00:21]} R8c2+ {[%emt 0:00:26]} 0-1

[Event "CZE-ch Youth B12 2022"]
[Site "Luhacovice"]
[Date "2022.03.18"]
[Round "8.11"]
[White "Jansky, Adam"]
[Black "Ruzicka, Oto"]
[Result "0-1"]
[ECO "C57"]
[WhiteElo "1233"]
[BlackElo "1233"]
[Annotator "NA"]
[PlyCount "72"]
[EventDate "2022.03.12"]
[EventType "swiss"]
[EventCountry "CZE"]
[SourceTitle "playchess.com"]
[Source "ChessBase"]
[SourceQuality "1"]
[TimeControl "5400+30"]

1. e4 {[%emt 0:00:02]} e5 {[%emt 0:00:16]} 2. Nf3 {[%emt 0:00:04]} Nc6 {[%emt 0:00:11]} 3. Bc4 {[%emt 0:00:04]} Nf6 {[%emt 0:00:17]} 4. Ng5 {[%emt 0:00:04]} d5 {[%emt 0:00:24]} 5. exd5 {[%emt 0:00:05]} b5 {[%emt 0:00:28]} 6. Bf1 {[%emt 0:00:09]} Nd4 {[%emt 0:00:28]} 7. c3 {[%emt 0:00:08]} Nxd5 {[%emt 0:00:49]} 8. cxd4 {[%emt 0:00:06]} Qxg5 {[%emt 0:00:37]} 9. Bxb5+ {[%emt 0:00:09]} Kd8 {[%emt 0:01:07]} 10. O-O {[%emt 0:00:11]} Bb7 {[%emt 0:02:07]} 11. Qf3 {[%emt 0:00:51]} e4 {[%emt 0:02:05]} 12. Qxe4 {[%emt 0:14:06]} Bd6 {[%emt 0:09:36]} 13. Qf3 {[%emt 0:02:37]} Rb8 {[%emt 0:13:13]} 14. h4 {[%emt 0:33:58]} Nf4 {[%emt 0:21:07]} 15. hxg5 {[%emt 0:00:25]} Bxf3 {[%emt 0:00:14]} 16. gxf3 {[%emt 0:00:09]} Rxb5 {[%emt 0:00:10]} 17. Re1 {[%emt 0:03:51]} Rxg5+ {[%emt 0:01:24]} 18. Kf1 {[%emt 0:00:35]} h5 {[%emt 0:01:07]} 19. d3 {[%emt 0:01:48]} f5 {[%emt 0:04:09]} 20. Bxf4 {[%emt 0:00:18]} Bxf4 {[%emt 0:00:21]} 21. Nc3 {[%emt 0:00:11]} h4 {[%emt 0:03:07]} 22. Nd5 {[%emt 0:00:54]} Bd6 {[%emt 0:02:02]} 23. Ke2 {[%emt 0:00:51]} f4 {[%emt 0:01:29]} 24. Rh1 {[%emt 0:00:41]} Rxd5 {[%emt 0:01:13]} 25. Rh3 {[%emt 0:00:49]} Rxd4 {[%emt 0:02:00]} 26. Rg1 {[%emt 0:00:17]} Be5 {[%emt 0:00:42]} 27. Rg4 {[%emt 0:00:54]} Bf6 {[%emt 0:00:38]} 28. Kd2 {[%emt 0:00:16]} g5 {[%emt 0:00:44]} 29. Kc2 {[%emt 0:00:37]} Re8 {[%emt 0:00:36]} 30. Kd2 {[%emt 0:00:18]} Ra4 {[%emt 0:00:33]} 31. a3 {[%emt 0:00:23]} Ra6 {[%emt 0:00:20]} 32. Rh2 {[%emt 0:00:35]} Rb6 {[%emt 0:00:30]} 33. Kc1 {[%emt 0:00:29]} Re2 {[%emt 0:00:37]} 34. b4 {[%emt 0:00:25]} Rc6+ {[%emt 0:01:13]} 35. Kb1 {[%emt 0:00:41]} Rb2+ {[%emt 0:00:21]} 36. Ka1 {[%emt 0:00:15]} Rc1# {[%emt 0:00:07]} 0-1

[Event "CZE-ch Youth B12 2022"]
[Site "Luhacovice"]
[Date "2022.03.18"]
[Round "8.12"]
[White "Pasek, Josef"]
[Black "Knapek, Jan"]
[Result "0-1"]
[ECO "D02"]
[WhiteElo "1351"]
[BlackElo "1340"]
[Annotator "NA"]
[PlyCount "70"]
[EventDate "2022.03.12"]
[EventType "swiss"]
[EventCountry "CZE"]
[SourceTitle "playchess.com"]
[Source "ChessBase"]
[SourceQuality "1"]
[TimeControl "5400+30"]

1. d4 {[%emt 0:00:06]} d5 {[%emt 0:00:11]} 2. Nf3 {[%emt 0:00:08]} Nc6 {[%emt 0:01:35]} 3. g3 {[%emt 0:02:20]} Nf6 {[%emt 0:00:31]} 4. Bg2 {[%emt 0:02:08]} g6 {[%emt 0:00:15]} 5. O-O {[%emt 0:02:54]} Bg7 {[%emt 0:00:07]} 6. b3 {[%emt 0:01:25]} O-O {[%emt 0:00:56]} 7. Bb2 {[%emt 0:03:06]} Bf5 {[%emt 0:01:39]} 8. Nbd2 {[%emt 0:04:47]} Qd7 {[%emt 0:08:40]} 9. c4 {[%emt 0:02:52]} dxc4 {[%emt 0:02:02]} 10. bxc4 {[%emt 0:00:52]} Nh5 {[%emt 0:04:06]} 11. Nb3 {[%emt 0:03:46]} Rad8 {[%emt 0:05:28]} 12. Qd2 {[%emt 0:04:13]} b6 {[%emt 0:07:48]} 13. d5 {[%emt 0:05:52]} Qc8 {[%emt 0:03:50]} 14. Bxg7 {[%emt 0:00:29]} Nxg7 {[%emt 0:00:14]} 15. Qc3 {[%emt 0:02:04]} Nb8 {[%emt 0:01:05]} 16. Nfd4 {[%emt 0:06:21]} Bh3 {[%emt 0:01:32]} 17. e4 {[%emt 0:02:10]} Bxg2 {[%emt 0:00:58]} 18. Kxg2 {[%emt 0:00:06]} e6 {[%emt 0:05:05]} 19. Rac1 {[%emt 0:07:09]} c6 {[%emt 0:01:32]} 20. dxe6 {[%emt 0:02:59]} Nxe6 {[%emt 0:02:55]} 21. f4 {[%emt 0:09:01]} Nxd4 {[%emt 0:03:35]} 22. Nxd4 {[%emt 0:00:39]} c5 {[%emt 0:00:27]} 23. Nf3 {[%emt 0:02:58]} Qc6 {[%emt 0:02:00]} 24. e5 {[%emt 0:06:21]} Na6 {[%emt 0:04:20]} 25. Rcd1 {[%emt 0:04:10]} b5 {[%emt 0:04:55]} 26. cxb5 {[%emt 0:03:12]} Qxb5 {[%emt 0:00:34]} 27. Rxd8 {[%emt 0:05:44]} Rxd8 {[%emt 0:00:54]} 28. e6 {[%emt 0:02:02]} Qe2+ {[%emt 0:02:33]} 29. Rf2 {[%emt 0:00:16]} Qxe6 {[%emt 0:00:24]} 30. f5 {[%emt 0:08:22]} Qc6 {[%emt 0:08:42]} 31. fxg6 {[%emt 0:00:51]} hxg6 {[%emt 0:01:08]} 32. h4 {[%emt 0:01:26]} Nb4 {[%emt 0:02:22]} 33. Kh2 {[%emt 0:01:44]} Rd3 {[%emt 0:01:37]} 34. Qe1 {[%emt 0:02:37]} Rxf3 {[%emt 0:00:56]} 35. Re2 {[%emt 0:00:11]} Rf6 {[%emt 0:01:26]} 0-1

[Event "CZE-ch Youth B12 2022"]
[Site "Luhacovice"]
[Date "2022.03.19"]
[Round "9.2"]
[White "Kutil, Adam"]
[Black "Delgerdalai, Bayarjavkhlan"]
[Result "0-1"]
[ECO "B52"]
[WhiteElo "1544"]
[BlackElo "2074"]
[Annotator "ChessBase"]
[PlyCount "87"]
[EventDate "2022.03.12"]
[EventType "swiss"]
[EventCountry "CZE"]
[SourceTitle "playchess.com"]
[Source "ChessBase"]
[SourceQuality "1"]
[TimeControl "5400+30"]

1. Nf3 {[%emt 0:00:23]} c5 {[%emt 0:00:26]} 2. e4 {[%emt 0:01:26]} d6 {[%emt 0:00:05]} 3. Bb5+ {[%emt 0:00:23]} Bd7 {[%emt 0:00:01]} 4. Bxd7+ {[%emt 0:00:07]} Nxd7 {[%emt 0:00:07]} 5. c4 {[%emt 0:01:17]} Ngf6 {[%emt 0:01:29]} 6. Nc3 {[%emt 0:00:39]} g6 {[%emt 0:01:32]} 7. d4 {[%emt 0:01:35]} cxd4 {[%emt 0:00:08]} 8. Nxd4 {[%emt 0:00:05]} Rc8 {[%emt 0:01:07]} 9. b3 {[%emt 0:03:55]} a6 {[%emt 0:01:43]} 10. O-O {[%emt 0:06:18]} e6 {[%emt 0:02:57]} 11. Nde2 {[%emt 0:08:05]} Qc7 {[%emt 0:04:14]} 12. f3 {[%emt 0:04:28]} Bg7 {[%emt 0:00:47]} 13. Bf4 {[%emt 0:01:02]} Ne5 {[%emt 0:01:07]} 14. Qd2 {[%emt 0:04:07]} O-O {[%emt 0:01:48]} 15. Bh6 {[%emt 0:02:28]} Rfd8 {[%emt 0:03:47]} 16. Bxg7 {[%emt 0:00:37]} Kxg7 {[%emt 0:00:02]} 17. f4 {[%emt 0:03:27]} Neg4 {[%emt 0:07:04]} 18. h3 {[%emt 0:07:12]} Qc5+ {[%emt 0:02:49]} 19. Qd4 {[%emt 0:00:38]} Qxd4+ {[%emt 0:12:31]} 20. Nxd4 {[%emt 0:00:07]} e5 {[%emt 0:06:33]} 21. Nc2 {[%emt 0:09:37]} Nh6 {[%emt 0:00:34]} 22. g4 {[%emt 0:01:17]} Nhg8 {[%emt 0:01:11]} 23. g5 {[%emt 0:02:28]} Nh5 {[%emt 0:01:15]} 24. f5 {[%emt 0:01:42]} f6 {[%emt 0:02:20]} 25. h4 {[%emt 0:02:36]} Nf4 {[%emt 0:04:55]} 26. Kh2 {[%emt 0:11:24]} gxf5 {[%emt 0:11:08]} 27. exf5 {[%emt 0:00:48]} d5 {[%emt 0:02:09]} 28. Rxf4 {[%emt 0:05:11]} exf4 {[%emt 0:01:14]} 29. Nd4 {[%emt 0:00:10]} Kf7 {[%emt 0:06:33]} 30. Ne6 {[%emt 0:03:06]} Rd6 {[%emt 0:03:12]} 31. Nxd5 {[%emt 0:01:54]} b5 {[%emt 0:05:53]} 32. Ndxf4 {[%emt 0:03:03]} Ne7 {[%emt 0:01:53]} 33. gxf6 {[%emt 0:05:17]} Nxf5 {[%emt 0:01:35]} 34. Ng5+ {[%emt 0:00:33]} Kxf6 {[%emt 0:00:41]} 35. Ne4+ {[%emt 0:00:16]} Ke5 {[%emt 0:00:22]} 36. Nxd6 {[%emt 0:00:25]} Nxd6 {[%emt 0:00:50]} 37. Nd3+ {[%emt 0:01:50]} Ke4 {[%emt 0:00:39]} 38. c5 {[%emt 0:01:25]} Nf5 {[%emt 0:01:48]} 39. Nb4 {[%emt 0:01:05]} Rxc5 {[%emt 0:03:15]} 40. Nxa6 {[%emt 0:00:31]} Rc2+ {[%emt 0:00:55]} 41. Kh3 {[%emt 0:00:30]} Rc3+ {[%emt 0:00:24]} 42. Kg4 {[%emt 0:02:33]} Rg3+ {[%emt 0:00:06]} 43. Kh5 {[%emt 0:00:11]} Rg6 {[%emt 0:00:20]} 44. Re1+ {[%emt 0:02:01]} 0-1

[Event "CZE-ch Youth B12 2022"]
[Site "Luhacovice"]
[Date "2022.03.19"]
[Round "9.3"]
[White "Mikulka, Martin Michael"]
[Black "Stary, Vojtech"]
[Result "1-0"]
[ECO "B76"]
[WhiteElo "1406"]
[BlackElo "1640"]
[Annotator "NA"]
[PlyCount "89"]
[EventDate "2022.03.12"]
[EventType "swiss"]
[EventCountry "CZE"]
[SourceTitle "playchess.com"]
[Source "ChessBase"]
[SourceQuality "1"]
[TimeControl "5400+30"]

1. e4 {[%emt 0:00:04]} c5 {[%emt 0:00:07]} 2. Nf3 {[%emt 0:00:04]} d6 {[%emt 0:00:08]} 3. d4 {[%emt 0:00:05]} cxd4 {[%emt 0:00:05]} 4. Nxd4 {[%emt 0:00:07]} Nf6 {[%emt 0:00:09]} 5. Nc3 {[%emt 0:00:18]} g6 {[%emt 0:00:08]} 6. Be3 {[%emt 0:00:16]} Bg7 {[%emt 0:00:08]} 7. f3 {[%emt 0:00:08]} Nc6 {[%emt 0:00:09]} 8. Qd2 {[%emt 0:00:06]} O-O {[%emt 0:00:12]} 9. O-O-O {[%emt 0:00:06]} Nxd4 {[%emt 0:00:31]} 10. Bxd4 {[%emt 0:00:10]} Be6 {[%emt 0:00:15]} 11. g4 {[%emt 0:00:51]} Qa5 {[%emt 0:00:13]} 12. Kb1 {[%emt 0:00:28]} Rfc8 {[%emt 0:00:24]} 13. Nd5 {[%emt 0:02:20]} Qxd2 {[%emt 0:00:23]} 14. Nxf6+ {[%emt 0:00:15]} Bxf6 {[%emt 0:00:10]} 15. Rxd2 {[%emt 0:00:07]} Bxd4 {[%emt 0:00:22]} 16. Rxd4 {[%emt 0:00:08]} Rc5 {[%emt 0:01:19]} 17. h4 {[%emt 0:02:06]} Rac8 {[%emt 0:01:22]} 18. Rh2 {[%emt 0:01:28]} Bc4 {[%emt 0:00:31]} 19. Bxc4 {[%emt 0:00:17]} Rxc4 {[%emt 0:00:07]} 20. Rhd2 {[%emt 0:01:17]} Rxd4 {[%emt 0:04:09]} 21. Rxd4 {[%emt 0:00:16]} Rc5 {[%emt 0:01:37]} 22. c3 {[%emt 0:06:05]} Kg7 {[%emt 0:00:34]} 23. Kc2 {[%emt 0:00:10]} Kf6 {[%emt 0:01:23]} 24. Kd3 {[%emt 0:00:36]} Ke5 {[%emt 0:02:44]} 25. Ke3 {[%emt 0:00:47]} f5 {[%emt 0:05:39]} 26. exf5 {[%emt 0:03:12]} gxf5 {[%emt 0:01:40]} 27. g5 {[%emt 0:00:40]} Rc6 {[%emt 0:11:39]} 28. h5 {[%emt 0:02:31]} Rb6 {[%emt 0:01:21]} 29. h6 {[%emt 0:06:25]} Rc6 {[%emt 0:08:56]} 30. Ra4 {[%emt 0:02:55]} a6 {[%emt 0:01:03]} 31. Rb4 {[%emt 0:00:24]} Rc7 {[%emt 0:05:24]} 32. a4 {[%emt 0:08:48]} Kd5 {[%emt 0:06:55]} 33. Kf4 {[%emt 0:01:49]} e6 {[%emt 0:01:47]} 34. Rd4+ {[%emt 0:00:20]} Kc5 {[%emt 0:03:10]} 35. b4+ {[%emt 0:00:05]} Kb6 {[%emt 0:00:50]} 36. Rxd6+ {[%emt 0:00:06]} Ka7 {[%emt 0:00:13]} 37. Rxe6 {[%emt 0:01:16]} Rxc3 {[%emt 0:01:21]} 38. g6 {[%emt 0:03:23]} hxg6 {[%emt 0:00:40]} 39. h7 {[%emt 0:00:05]} Rc8 {[%emt 0:00:16]} 40. Rxg6 {[%emt 0:00:08]} Rh8 {[%emt 0:00:13]} 41. Rh6 {[%emt 0:00:11]} b5 {[%emt 0:00:31]} 42. a5 {[%emt 0:00:12]} Kb7 {[%emt 0:00:51]} 43. Kxf5 {[%emt 0:00:10]} Kc7 {[%emt 0:03:00]} 44. Kg6 {[%emt 0:00:23]} Kd7 {[%emt 0:01:36]} 45. Kg7 {[%emt 0:00:13]} 1-0

[Event "CZE-ch Youth B12 2022"]
[Site "Luhacovice"]
[Date "2022.03.19"]
[Round "9.4"]
[White "Mik, Tomas"]
[Black "Martirosyan, David"]
[Result "0-1"]
[ECO "C48"]
[WhiteElo "1643"]
[BlackElo "1725"]
[Annotator "NA"]
[PlyCount "80"]
[EventDate "2022.03.12"]
[EventType "swiss"]
[EventCountry "CZE"]
[SourceTitle "playchess.com"]
[Source "ChessBase"]
[SourceQuality "1"]
[TimeControl "5400+30"]

1. Nc3 {[%emt 0:00:05]} e5 {[%emt 0:01:06]} 2. Nf3 {[%emt 0:00:14]} Nc6 {[%emt 0:03:20]} 3. e4 {[%emt 0:00:18]} Bc5 {[%emt 0:03:59]} 4. Bb5 {[%emt 0:01:44]} Nf6 {[%emt 0:01:40]} 5. Nxe5 {[%emt 0:00:20]} Nxe5 {[%emt 0:03:38]} 6. d4 {[%emt 0:00:24]} Bd6 {[%emt 0:02:11]} 7. f4 {[%emt 0:00:23]} Nc6 {[%emt 0:03:47]} 8. e5 {[%emt 0:00:28]} Be7 {[%emt 0:00:04]} 9. exf6 {[%emt 0:01:17]} Bxf6 {[%emt 0:00:37]} 10. Be3 {[%emt 0:01:42]} O-O {[%emt 0:04:53]} 11. Qd2 {[%emt 0:01:46]} d5 {[%emt 0:05:41]} 12. O-O-O {[%emt 0:01:13]} a6 {[%emt 0:04:20]} 13. Be2 {[%emt 0:02:39]} b5 {[%emt 0:04:25]} 14. g4 {[%emt 0:01:53]} Re8 {[%emt 0:02:16]} 15. Bf3 {[%emt 0:04:21]} Na5 {[%emt 0:09:59]} 16. Bxd5 {[%emt 0:02:31]} c6 {[%emt 0:00:25]} 17. Bb3 {[%emt 0:00:46]} Bxg4 {[%emt 0:00:36]} 18. Rdf1 {[%emt 0:02:02]} Nxb3+ {[%emt 0:03:14]} 19. axb3 {[%emt 0:00:38]} Bf5 {[%emt 0:00:10]} 20. h3 {[%emt 0:18:36]} Qd7 {[%emt 0:03:35]} 21. h4 {[%emt 0:00:50]} Rad8 {[%emt 0:02:11]} 22. Rd1 {[%emt 0:01:06]} Re6 {[%emt 0:02:15]} 23. h5 {[%emt 0:03:06]} h6 {[%emt 0:01:05]} 24. Qf2 {[%emt 0:01:00]} Rd6 {[%emt 0:08:03]} 25. Ne2 {[%emt 0:02:42]} c5 {[%emt 0:04:43]} 26. d5 {[%emt 0:05:36]} Rxd5 {[%emt 0:01:38]} 27. Rxd5 {[%emt 0:00:39]} Qxd5 {[%emt 0:00:07]} 28. Rg1 {[%emt 0:00:33]} c4 {[%emt 0:05:06]} 29. b4 {[%emt 0:05:02]} Rd7 {[%emt 0:05:17]} 30. Nc3 {[%emt 0:02:14]} Qd6 {[%emt 0:03:40]} 31. Bc5 {[%emt 0:00:40]} Qc6 {[%emt 0:01:08]} 32. Ne2 {[%emt 0:03:14]} Rd5 {[%emt 0:02:20]} 33. Nd4 {[%emt 0:01:28]} Qd7 {[%emt 0:00:42]} 34. c3 {[%emt 0:00:52]} Bg4 {[%emt 0:01:13]} 35. Qh2 {[%emt 0:04:14]} Rxh5 {[%emt 0:01:16]} 36. Qg2 {[%emt 0:01:07]} Bf5 {[%emt 0:00:49]} 37. Nc6 {[%emt 0:01:49]} Bg6 {[%emt 0:01:03]} 38. Bd4 {[%emt 0:00:55]} Qf5 {[%emt 0:02:17]} 39. Bxf6 {[%emt 0:03:32]} Qxf4+ {[%emt 0:00:23]} 40. Kd1 {[%emt 0:00:56]} Qxf6 {[%emt 0:00:13]} 0-1